fUST/lending_fUST_20250709
["ID","MTS","AMOUNT","RATE_DAILY","PERIOD"]
[370521425,1752053465399,-460.0,0.00021095,2]
[370521426,1752053465409,-460.0,0.00021095,2]
[370521427,1752053465419,-511.57,0.00021095,2]
[370521428,1752053465427,-220.72,0.00021095,2]
[370521429,1752053465436,-460.0,0.00021095,2]
[370521430,1752053465446,-460.0,0.00021095,2]
[370521431,1752053465457,-170.67562227,0.00021095,2]
[370521432,1752053465467,-460.0,0.00021095,2]
[370521433,1752053465477,-460.0,0.00021095,2]
[370521434,1752053465486,-460.0,0.00021095,2]
[370521435,1752053465495,-460.0,0.00021095,2]
[370521436,1752053465504,-177.76912002,0.00021095,2]
[370521437,1752053465514,-460.0,0.00021095,2]
[370521438,1752053465524,-460.0,0.00021095,2]
[370521439,1752053465533,-758.68,0.00021095,2]
[370521440,1752053465542,-1536.75,0.00021095,2]
[370521441,1752053465551,-682.21,0.00021095,2]
[370521442,1752053465563,-460.0,0.00021095,2]
[370521443,1752053465573,-460.0,0.00021095,2]
[370521444,1752053465582,-476.93,0.00021095,2]
[370521445,1752053465591,-3196.85,0.00021095,2]
[370521446,1752053465600,-739.83,0.00021095,2]
[370521447,1752053465609,-2800.45,0.00021095,2]
[370521448,1752053465618,-460.0,0.00021095,2]
[370521449,1752053465627,-460.0,0.00021095,2]
[370521450,1752053465636,-156.69795553,0.00021095,2]
[370521451,1752053465646,-460.0,0.00021095,2]
[370521452,1752053465655,-460.0,0.00021095,2]
[370521453,1752053465664,-460.0,0.00021095,2]
[370521454,1752053465673,-460.0,0.00021095,2]
[370521455,1752053465682,-151.0,0.00021095,2]
[370521456,1752053465692,-460.0,0.00021095,2]
[370521457,1752053465701,-460.0,0.00021095,2]
[370521458,1752053465711,-173.78674107,0.00021095,2]
[370521459,1752053465796,-460.0,0.00021095,2]
[370521460,1752053465811,-460.0,0.00021095,2]
[370521461,1752053465821,-1047.54,0.00021095,2]
[370521462,1752053465831,-460.0,0.00021095,2]
[370521463,1752053465840,-460.0,0.00021095,2]
[370521464,1752053465850,-5721.05,0.00021095,2]
[370521465,1752053465859,-460.0,0.00021095,2]
[370521466,1752053465868,-527.52,0.00021095,2]
[370521467,1752053465877,-2953.21,0.00021095,2]
[370521468,1752053465887,-460.0,0.00021095,2]
[370521469,1752053465896,-460.0,0.00021095,2]
[370521470,1752053465905,-460.0,0.00021095,2]
[370521471,1752053465915,-2773.67,0.00021095,2]
[370521472,1752053465924,-460.0,0.00021095,2]
[370521473,1752053465933,-460.0,0.00021095,2]
[370521474,1752053465943,-3850.31,0.00021095,2]
[370521475,1752053465952,-460.0,0.00021095,2]
[370521476,1752053465961,-460.0,0.00021095,2]
[370521477,1752053465971,-460.0,0.00021095,2]
[370521478,1752053465981,-460.0,0.00021095,2]
[370521479,1752053465990,-460.0,0.00021095,2]
[370521480,1752053466000,-460.0,0.00021095,2]
[370521481,1752053466010,-460.0,0.00021095,2]
[370521482,1752053466019,-460.0,0.00021095,2]
[370521483,1752053466029,-460.0,0.00021095,2]
[370521484,1752053466038,-460.0,0.00021095,2]
[370521485,1752053466047,-460.0,0.00021095,2]
[370521486,1752053466057,-1904.62,0.00021095,2]
[370521487,1752053466066,-460.0,0.00021095,2]
[370521488,1752053466075,-241.45405256,0.00021095,2]
[370521489,1752053466084,-1770.03,0.00021095,2]
[370521490,1752053466093,-582.95,0.00021095,2]
[370521491,1752053466103,-460.0,0.00021095,2]
[370521492,1752053466113,-460.0,0.00021095,2]
[370521493,1752053466122,-460.0,0.00021095,2]
[370521494,1752053466131,-3653.46,0.00021095,2]
[370521495,1752053466141,-460.0,0.00021095,2]
[370521496,1752053466151,-700.36,0.00021095,2]
[370521497,1752053466160,-460.0,0.00021095,2]
[370521498,1752053466169,-1095.96,0.00021095,2]
[370521499,1752053466179,-460.0,0.00021095,2]
[370521500,1752053466189,-785.56,0.00021095,2]
[370521501,1752053466199,-460.0,0.00021095,2]
[370521502,1752053466209,-460.0,0.00021095,2]
[370521503,1752053466219,-460.0,0.00021095,2]
[370521504,1752053466230,-151.0,0.00021095,2]
[370521505,1752053466239,-460.0,0.00021095,2]
[370521506,1752053466249,-791.47,0.00021095,2]
[370521507,1752053466259,-460.0,0.00021095,2]
[370521508,1752053466269,-4875.59,0.00021095,2]
[370521509,1752053466279,-460.0,0.00021095,2]
[370521510,1752053466288,-460.0,0.00021095,2]
[370521511,1752053466298,-1396.46,0.00021095,2]
[370521512,1752053466308,-2150.85,0.00021095,2]
[370521513,1752053466317,-460.0,0.00021095,2]
[370521514,1752053466326,-360.66173995,0.00021095,2]
[370521515,1752053466335,-184.846295,0.00021095,2]
[370521516,1752053466345,-460.0,0.00021095,2]
[370521517,1752053466355,-744.88,0.00021095,2]
[370521518,1752053466365,-460.0,0.00021095,2]
[370521519,1752053466374,-460.0,0.00021095,2]
[370521520,1752053466384,-184.846295,0.00021095,2]
[370521521,1752053466393,-470.46337858,0.00021095,2]
[370521522,1752053466403,-460.0,0.00021095,2]
[370521523,1752053466413,-686.5,0.00021095,2]
[370521524,1752053466422,-1918.54,0.00021095,2]
[370521525,1752053466439,-460.0,0.00021095,2]
[370521526,1752053466458,-151.0,0.00021095,2]
[370521527,1752053466477,-460.0,0.00021095,2]
[370521528,1752053466497,-460.0,0.00021095,2]
[370521529,1752053466516,-1339.53,0.00021095,2]
[370521530,1752053466534,-466.6,0.00021095,2]
[370521531,1752053466552,-460.0,0.00021095,2]
[370521532,1752053466570,-506.88,0.00021095,2]
[370521533,1752053466588,-1000.0,0.00021116,2]
[370521534,1752053466609,-161.305803,0.00021125,2]
[370521535,1752053466628,-161.305803,0.00021232,2]
[370521536,1752053466641,-992.56807043,0.00021245,4]
[370521537,1752053466662,-161.305803,0.00021338,2]
[370521538,1752053466676,-522.75019543,0.00021364,2]
[370521539,1752053466694,-2500.0,0.00021364,2]
[370521540,1752053466707,-460.0,0.00021369,2]
[370521541,1752053466723,-460.0,0.00021369,2]
[370521542,1752053466738,-460.0,0.00021369,2]
[370521543,1752053466754,-460.0,0.00021369,2]
[370521544,1752053466769,-460.0,0.00021369,2]
[370521545,1752053466784,-460.0,0.00021369,2]
[370521546,1752053466800,-460.0,0.00021369,2]
[370521547,1752053466815,-460.0,0.00021369,2]
[370521548,1752053466829,-460.0,0.00021369,2]
[370521549,1752053466844,-460.0,0.00021369,2]
[370521550,1752053466859,-460.0,0.00021369,2]
[370521551,1752053466873,-460.0,0.00021369,2]
[370521552,1752053466888,-460.0,0.00021369,2]
[370521553,1752053466902,-460.0,0.00021369,2]
[370521554,1752053466916,-460.0,0.00021369,2]
[370521555,1752053466931,-460.0,0.00021369,2]
[370521556,1752053466946,-460.0,0.00021369,2]
[370521557,1752053466961,-460.0,0.00021369,2]
[370521558,1752053466974,-460.0,0.00021369,2]
[370521559,1752053466983,-460.0,0.00021369,2]
[370521560,1752053466993,-151.0,0.00021369,2]
[370521561,1752053467005,-151.0,0.00021369,2]
[370521562,1752053467014,-151.0,0.00021369,2]
[370521563,1752053467024,-460.0,0.00021369,2]
[370521564,1752053467033,-555.66,0.00021369,2]
[370521565,1752053467043,-151.0,0.00021369,2]
[370521566,1752053467052,-151.0,0.00021369,2]
[370521567,1752053467062,-460.0,0.00021369,2]
[370521568,1752053467072,-178.16,0.00021369,2]
[370521569,1752053467082,-460.0,0.00021369,2]
[370521570,1752053467091,-460.0,0.00021369,2]
[370521571,1752053467101,-204.98472858,0.00021369,2]
[370521572,1752053467110,-460.0,0.00021369,2]
[370521573,1752053467120,-460.0,0.00021369,2]
[370521574,1752053467129,-673.78,0.00021369,2]
[370521575,1752053467139,-175.98,0.00021369,2]
[370521576,1752053467148,-520.2,0.00021369,2]
[370521577,1752053467157,-460.0,0.00021369,2]
[370521578,1752053467167,-460.0,0.00021369,2]
[370521579,1752053467176,-460.0,0.00021369,2]
[370521580,1752053467186,-751.34,0.00021369,2]
[370521581,1752053467196,-460.0,0.00021369,2]
[370521582,1752053467205,-460.0,0.00021369,2]
[370521583,1752053467216,-460.0,0.00021369,2]
[370521584,1752053467226,-460.0,0.00021369,2]
[370521585,1752053467235,-460.0,0.00021369,2]
[370521586,1752053467245,-460.0,0.00021369,2]
[370521587,1752053467254,-511.57,0.00021369,2]
[370521588,1752053467263,-460.0,0.00021369,2]
[370521589,1752053467272,-460.0,0.00021369,2]
[370521590,1752053467542,-460.0,0.00021369,2]
[370521591,1752053467563,-460.0,0.00021369,2]
[370521592,1752053467579,-460.0,0.00021369,2]
[370521593,1752053467589,-460.0,0.00021369,2]
[370521594,1752053467598,-758.68,0.00021369,2]
[370521595,1752053467607,-1536.75,0.00021369,2]
[370521596,1752053467616,-682.21,0.00021369,2]
[370521597,1752053467626,-460.0,0.00021369,2]
[370521598,1752053467635,-476.93,0.00021369,2]
[370521599,1752053467644,-3196.85,0.00021369,2]
[370521600,1752053467654,-739.83,0.00021369,2]
[370521601,1752053467664,-2800.45,0.00021369,2]
[370521602,1752053467673,-492.97894013,0.00021369,2]
[370521603,1752053467682,-460.0,0.00021369,2]
[370521604,1752053467692,-216.43,0.00021369,2]
[370521605,1752053467701,-460.0,0.00021369,2]
[370521606,1752053467711,-460.0,0.00021369,2]
[370521607,1752053467720,-460.0,0.00021369,2]
[370521608,1752053467729,-212.54,0.00021369,2]
[370521609,1752053467738,-460.0,0.00021369,2]
[370521610,1752053467748,-460.0,0.00021369,2]
[370521611,1752053467757,-460.0,0.00021369,2]
[370521612,1752053467767,-1047.54,0.00021369,2]
[370521613,1752053467777,-460.0,0.00021369,2]
[370521614,1752053467787,-460.0,0.00021369,2]
[370521615,1752053467797,-5721.05,0.00021369,2]
[370521616,1752053467806,-460.0,0.00021369,2]
[370521617,1752053467816,-527.52,0.00021369,2]
[370521618,1752053467825,-2953.21,0.00021369,2]
[370521619,1752053467834,-460.0,0.00021369,2]
[370521620,1752053467843,-460.0,0.00021369,2]
[370521621,1752053467853,-2773.67,0.00021369,2]
[370521622,1752053467862,-460.0,0.00021369,2]
[370521623,1752053467871,-460.0,0.00021369,2]
[370521624,1752053467881,-3850.31,0.00021369,2]
[370521625,1752053467891,-460.0,0.00021369,2]
[370521626,1752053467900,-460.0,0.00021369,2]
[370521627,1752053467910,-460.0,0.00021369,2]
[370521628,1752053467919,-460.0,0.00021369,2]
[370521629,1752053467929,-460.0,0.00021369,2]
[370521630,1752053467938,-340.45278261,0.00021369,2]
[370521631,1752053467947,-460.0,0.00021369,2]
[370521632,1752053467956,-460.0,0.00021369,2]
[370521633,1752053467966,-460.0,0.00021369,2]
[370521634,1752053467974,-460.0,0.00021369,2]
[370521635,1752053467983,-1904.62,0.00021369,2]
[370521636,1752053467993,-460.0,0.00021369,2]
[370521637,1752053468002,-1770.03,0.00021369,2]
[370521638,1752053468011,-582.95,0.00021369,2]
[370521639,1752053468021,-460.0,0.00021369,2]
[370521640,1752053468030,-460.0,0.00021369,2]
[370521641,1752053468039,-460.0,0.00021369,2]
[370521642,1752053468048,-3653.46,0.00021369,2]
[370521643,1752053468058,-460.0,0.00021369,2]
[370521644,1752053468067,-700.36,0.00021369,2]
[370521645,1752053468077,-460.0,0.00021369,2]
[370521646,1752053468086,-1095.96,0.00021369,2]
[370521647,1752053468095,-460.0,0.00021369,2]
[370521648,1752053468104,-785.56,0.00021369,2]
[370521649,1752053468113,-460.0,0.00021369,2]
[370521650,1752053468122,-460.0,0.00021369,2]
[370521651,1752053468131,-460.0,0.00021369,2]
[370521652,1752053468140,-460.0,0.00021369,2]
[370521653,1752053468149,-791.47,0.00021369,2]
[370521654,1752053468158,-460.0,0.00021369,2]
[370521655,1752053468168,-4875.59,0.00021369,2]
[370521656,1752053468178,-460.0,0.00021369,2]
[370521657,1752053468188,-460.0,0.00021369,2]
[370521658,1752053468201,-1396.46,0.00021369,2]
[370521659,1752053468210,-2150.85,0.00021369,2]
[370521660,1752053468219,-460.0,0.00021369,2]
[370521661,1752053468229,-460.0,0.00021369,2]
[370521662,1752053468238,-395.34,0.00021369,2]
[370521663,1752053468247,-744.88,0.00021369,2]
[370521664,1752053468256,-460.0,0.00021369,2]
[370521665,1752053468265,-460.0,0.00021369,2]
[370521666,1752053468274,-686.5,0.00021369,2]
[370521667,1752053468284,-1918.54,0.00021369,2]
[370521668,1752053468293,-460.0,0.00021369,2]
[370521669,1752053468302,-460.0,0.00021369,2]
[370521670,1752053468311,-1339.53,0.00021369,2]
[370521671,1752053468320,-460.0,0.00021369,2]
[370521672,1752053468330,-506.88,0.00021369,2]
[370521673,1752053468339,-1017.94766393,0.00021416,2]
[370521674,1752053468349,-992.56807043,0.00021417,5]
[370521675,1752053468360,-161.305803,0.00021445,2]
[370521676,1752053468369,-2973.65431424,0.00021479,2]
[370521677,1752053468378,-500.0,0.00021479,2]
[370521678,1752053468387,-161.305803,0.00021552,2]
[370521679,1752053468396,-992.56807043,0.0002159,5]
[370521680,1752053468406,-151.22157252,0.0002163,2]
[370521681,1752053468415,-151.0,0.0002163,2]
[370521682,1752053468424,-151.0,0.0002163,2]
[370521683,1752053468433,-151.0,0.0002163,2]
[370521684,1752053468442,-151.0,0.0002163,2]
[370521685,1752053468451,-151.0,0.0002163,2]
[370521686,1752053468460,-152.28372769,0.0002163,2]
[370521687,1752053468469,-299.49349369,0.0002163,2]
[370521688,1752053468478,-151.0,0.0002163,2]
[370521689,1752053468487,-199.15336165,0.0002163,2]
[370521690,1752053468496,-151.0,0.0002163,2]
[370521691,1752053468505,-151.0,0.0002163,2]
[370521692,1752053468515,-244.26829097,0.0002163,2]
[370521693,1752053468524,-199.11940999,0.0002163,2]
[370521694,1752053468533,-151.0,0.0002163,2]
[370521695,1752053468542,-151.0,0.0002163,2]
[370521696,1752053468552,-460.0,0.00021643,2]
[370521697,1752053468566,-460.0,0.00021643,2]
[370521698,1752053468575,-460.0,0.00021643,2]
[370521699,1752053468584,-460.0,0.00021643,2]
[370521700,1752053468594,-460.0,0.00021643,2]
[370521701,1752053468606,-460.0,0.00021643,2]
[370521702,1752053468615,-460.0,0.00021643,2]
[370521703,1752053468625,-460.0,0.00021643,2]
[370521704,1752053468637,-460.0,0.00021643,2]
[370521705,1752053468646,-460.0,0.00021643,2]
[370521706,1752053468656,-460.0,0.00021643,2]
[370521707,1752053468665,-312.59584118,0.00021643,2]
[370521708,1752053468674,-460.0,0.00021643,2]
[370521709,1752053468684,-450.44,0.00021643,2]
[370521710,1752053468693,-460.0,0.00021643,2]
[370521711,1752053468702,-482.07913872,0.00021643,2]
[370521712,1752053468711,-460.0,0.00021643,2]
[370521713,1752053468720,-160.732854,0.00021643,2]
[370521714,1752053468729,-160.732854,0.00021643,2]
[370521715,1752053468738,-460.0,0.00021643,2]
[370521716,1752053468747,-460.0,0.00021643,2]
[370521717,1752053468756,-566.48,0.00021643,2]
[370521718,1752053468765,-460.0,0.00021643,2]
[370521719,1752053468774,-392.9,0.00021643,2]
[370521720,1752053468784,-673.78,0.00021643,2]
[370521721,1752053468793,-460.0,0.00021643,2]
[370521722,1752053468802,-460.0,0.00021643,2]
[370521723,1752053468811,-346.6,0.00021643,2]
[370521724,1752053468821,-751.34,0.00021643,2]
[370521725,1752053468830,-460.0,0.00021643,2]
[370521726,1752053468839,-460.0,0.00021643,2]
[370521727,1752053468848,-460.0,0.00021643,2]
[370521728,1752053468857,-460.0,0.00021643,2]
[370521729,1752053468871,-460.0,0.00021643,2]
[370521730,1752053468880,-460.0,0.00021643,2]
[370521731,1752053468889,-511.57,0.00021643,2]
[370521732,1752053468899,-460.0,0.00021643,2]
[370521733,1752053468908,-460.0,0.00021643,2]
[370521734,1752053468917,-460.0,0.00021643,2]
[370521735,1752053468926,-460.0,0.00021643,2]
[370521736,1752053468936,-460.0,0.00021643,2]
[370521737,1752053468946,-460.0,0.00021643,2]
[370521738,1752053468955,-758.68,0.00021643,2]
[370521739,1752053468965,-230.223,0.00021643,2]
[370521740,1752053468976,-1536.75,0.00021643,2]
[370521741,1752053468985,-682.21,0.00021643,2]
[370521742,1752053468994,-260.88,0.00021643,2]
[370521743,1752053469003,-476.93,0.00021643,2]
[370521744,1752053469012,-3196.85,0.00021643,2]
[370521745,1752053469022,-739.83,0.00021643,2]
[370521746,1752053469031,-2800.45,0.00021643,2]
[370521747,1752053469040,-460.0,0.00021643,2]
[370521748,1752053469050,-460.0,0.00021643,2]
[370521749,1752053469059,-460.0,0.00021643,2]
[370521750,1752053469068,-460.0,0.00021643,2]
[370521751,1752053469077,-460.0,0.00021643,2]
[370521752,1752053469087,-460.0,0.00021643,2]
[370521753,1752053469096,-222.95346022,0.00021643,2]
[370521754,1752053469105,-1047.54,0.00021643,2]
[370521755,1752053469114,-460.0,0.00021643,2]
[370521756,1752053469124,-5721.05,0.00021643,2]
[370521757,1752053469133,-460.0,0.00021643,2]
[370521758,1752053469142,-527.52,0.00021643,2]
[370521759,1752053469152,-2953.21,0.00021643,2]
[370521760,1752053469161,-460.0,0.00021643,2]
[370521761,1752053469171,-460.0,0.00021643,2]
[370521762,1752053469180,-2773.67,0.00021643,2]
[370521763,1752053469189,-460.0,0.00021643,2]
[370521764,1752053469199,-460.0,0.00021643,2]
[370521765,1752053469208,-3850.31,0.00021643,2]
[370521766,1752053469218,-460.0,0.00021643,2]
[370521767,1752053469226,-460.0,0.00021643,2]
[370521768,1752053469235,-460.0,0.00021643,2]
[370521769,1752053469245,-460.0,0.00021643,2]
[370521770,1752053469254,-460.0,0.00021643,2]
[370521771,1752053469264,-460.0,0.00021643,2]
[370521772,1752053469273,-460.0,0.00021643,2]
[370521773,1752053469283,-460.0,0.00021643,2]
[370521774,1752053469292,-1904.62,0.00021643,2]
[370521775,1752053469301,-460.0,0.00021643,2]
[370521776,1752053469311,-1770.03,0.00021643,2]
[370521777,1752053469320,-582.95,0.00021643,2]
[370521778,1752053469329,-460.0,0.00021643,2]
[370521779,1752053469338,-460.0,0.00021643,2]
[370521780,1752053469347,-3653.46,0.00021643,2]
[370521781,1752053469357,-460.0,0.00021643,2]
[370521782,1752053469366,-700.36,0.00021643,2]
[370521783,1752053469376,-460.0,0.00021643,2]
[370521784,1752053469385,-1095.96,0.00021643,2]
[370521785,1752053469394,-460.0,0.00021643,2]
[370521786,1752053469404,-785.56,0.00021643,2]
[370521787,1752053469413,-460.0,0.00021643,2]
[370521788,1752053469422,-460.0,0.00021643,2]
[370521789,1752053469431,-460.0,0.00021643,2]
[370521790,1752053469440,-460.0,0.00021643,2]
[370521791,1752053469450,-791.47,0.00021643,2]
[370521792,1752053469460,-460.0,0.00021643,2]
[370521793,1752053469469,-4875.59,0.00021643,2]
[370521794,1752053469479,-345.96,0.00021643,2]
[370521795,1752053469489,-460.0,0.00021643,2]
[370521796,1752053469499,-1396.46,0.00021643,2]
[370521797,1752053469508,-460.0,0.00021643,2]
[370521798,1752053469518,-2150.85,0.00021643,2]
[370521799,1752053469527,-460.0,0.00021643,2]
[370521800,1752053469537,-744.88,0.00021643,2]
[370521801,1752053469546,-465.90116567,0.00021643,2]
[370521802,1752053469555,-460.0,0.00021643,2]
[370521803,1752053469571,-686.5,0.00021643,2]
[370521804,1752053469580,-1918.54,0.00021643,2]
[370521805,1752053469590,-568.89965697,0.00021643,2]
[370521806,1752053469599,-460.0,0.00021643,2]
[370521807,1752053469609,-1339.53,0.00021643,2]
[370521808,1752053469618,-460.0,0.00021643,2]
[370521809,1752053469628,-506.88,0.00021643,2]
[370521810,1752053469637,-500.0,0.00021657,2]
[370521811,1752053469646,-198.135086,0.00021657,2]
[370521812,1752053469656,-151.0,0.00021657,2]
[370521813,1752053469666,-151.0,0.00021657,2]
[370521814,1752053469676,-151.0,0.00021657,2]
[370521815,1752053469685,-174.864023,0.00021657,2]
[370521816,1752053469702,-174.864023,0.00021657,2]
[370521817,1752053469713,-151.0,0.00021657,2]
[370521818,1752053469722,-151.0,0.00021657,2]
[370521819,1752053469731,-151.0,0.00021657,2]
[370521820,1752053469740,-151.0,0.00021657,2]
[370521821,1752053469749,-161.305803,0.00021658,2]
[370521822,1752053469758,-249.0,0.00021685,2]
[370521823,1752053469767,-198.0,0.00021685,2]
[370521824,1752053469777,-198.0,0.00021685,2]
[370521825,1752053469786,-198.0,0.00021685,2]
[370521826,1752053469795,-992.56807043,0.00021762,5]
[370521827,1752053469805,-161.305803,0.00021765,2]
[370521828,1752053469819,-2662.28,0.000218,2]
[370521829,1752053469832,-151.0,0.00021858,5]
[370521830,1752053469841,-1000.0,0.00021912,2]
[370521831,1752053469851,-460.0,0.00021917,2]
[370521832,1752053469860,-460.0,0.00021917,2]
[370521833,1752053469869,-460.0,0.00021917,2]
[370521834,1752053469879,-375.59510107,0.00021917,2]
[370521835,1752053469888,-460.0,0.00021917,2]
[370521836,1752053469898,-460.0,0.00021917,2]
[370521837,1752053469908,-460.0,0.00021917,2]
[370521838,1752053469917,-460.0,0.00021917,2]
[370521839,1752053469926,-151.0,0.00021917,2]
[370521840,1752053469935,-460.0,0.00021917,2]
[370521841,1752053469944,-460.0,0.00021917,2]
[370521842,1752053469954,-460.0,0.00021917,2]
[370521843,1752053469963,-460.0,0.00021917,2]
[370521844,1752053469972,-673.78,0.00021917,2]
[370521845,1752053469981,-460.0,0.00021917,2]
[370521846,1752053469990,-751.34,0.00021917,2]
[370521847,1752053470000,-460.0,0.00021917,2]
[370521848,1752053470010,-272.822506,0.00021917,2]
[370521849,1752053470019,-181.910686,0.00021917,2]
[370521850,1752053470029,-460.0,0.00021917,2]
[370521851,1752053470038,-151.0,0.00021917,2]
[370521852,1752053470047,-151.0,0.00021917,2]
[370521853,1752053470058,-460.0,0.00021917,2]
[370521854,1752053470067,-488.68,0.00021917,2]
[370521855,1752053470077,-460.0,0.00021917,2]
[370521856,1752053470086,-347.67313241,0.00021917,2]
[370521857,1752053470096,-511.57,0.00021917,2]
[370521858,1752053470105,-460.0,0.00021917,2]
[370521859,1752053470114,-460.0,0.00021917,2]
[370521860,1752053470123,-377.39,0.00021917,2]
[370521861,1752053470132,-151.0,0.00021917,2]
[370521862,1752053470142,-460.0,0.00021917,2]
[370521863,1752053470151,-460.0,0.00021917,2]
[370521864,1752053470161,-460.0,0.00021917,2]
[370521865,1752053470171,-758.68,0.00021917,2]
[370521866,1752053470181,-1536.75,0.00021917,2]
[370521867,1752053470190,-682.21,0.00021917,2]
[370521868,1752053470200,-476.93,0.00021917,2]
[370521869,1752053470210,-3196.85,0.00021917,2]
[370521870,1752053470219,-739.83,0.00021917,2]
[370521871,1752053470228,-2800.45,0.00021917,2]
[370521872,1752053470237,-460.0,0.00021917,2]
[370521873,1752053470247,-254.07,0.00021917,2]
[370521874,1752053470255,-460.0,0.00021917,2]
[370521875,1752053470265,-460.0,0.00021917,2]
[370521876,1752053470274,-463.13612911,0.00021917,2]
[370521877,1752053470283,-176.46804853,0.00021917,2]
[370521878,1752053470292,-1047.54,0.00021917,2]
[370521879,1752053470302,-460.0,0.00021917,2]
[370521880,1752053470312,-5721.05,0.00021917,2]
[370521881,1752053470320,-460.0,0.00021917,2]
[370521882,1752053470330,-527.52,0.00021917,2]
[370521883,1752053470339,-2953.21,0.00021917,2]
[370521884,1752053470348,-460.0,0.00021917,2]
[370521885,1752053470357,-460.0,0.00021917,2]
[370521886,1752053470366,-268.823423,0.00021917,2]
[370521887,1752053470376,-2773.67,0.00021917,2]
[370521888,1752053470385,-268.823423,0.00021917,2]
[370521889,1752053470395,-460.0,0.00021917,2]
[370521890,1752053470404,-496.33,0.00021917,2]
[370521891,1752053470413,-3850.31,0.00021917,2]
[370521892,1752053470422,-280.19384252,0.00021917,2]
[370521893,1752053470432,-460.0,0.00021917,2]
[370521894,1752053470441,-460.0,0.00021917,2]
[370521895,1752053470450,-460.0,0.00021917,2]
[370521896,1752053470459,-460.0,0.00021917,2]
[370521897,1752053470468,-460.0,0.00021917,2]
[370521898,1752053470477,-460.0,0.00021917,2]
[370521899,1752053470486,-460.0,0.00021917,2]
[370521900,1752053470496,-1904.62,0.00021917,2]
[370521901,1752053470505,-1770.03,0.00021917,2]
[370521902,1752053470514,-582.95,0.00021917,2]
[370521903,1752053470523,-460.0,0.00021917,2]
[370521904,1752053470532,-368.85,0.00021917,2]
[370521905,1752053470541,-3653.46,0.00021917,2]
[370521906,1752053470551,-460.0,0.00021917,2]
[370521907,1752053470561,-700.36,0.00021917,2]
[370521908,1752053470573,-210.06,0.00021917,2]
[370521909,1752053470582,-1095.96,0.00021917,2]
[370521910,1752053470591,-460.0,0.00021917,2]
[370521911,1752053470600,-785.56,0.00021917,2]
[370521912,1752053470611,-460.0,0.00021917,2]
[370521913,1752053470620,-151.0,0.00021917,2]
[370521914,1752053470629,-460.0,0.00021917,2]
[370521915,1752053470638,-460.0,0.00021917,2]
[370521916,1752053470647,-326.67,0.00021917,2]
[370521917,1752053470657,-791.47,0.00021917,2]
[370521918,1752053470667,-460.0,0.00021917,2]
[370521919,1752053470676,-4875.59,0.00021917,2]
[370521920,1752053470686,-460.0,0.00021917,2]
[370521921,1752053470695,-1396.46,0.00021917,2]
[370521922,1752053470704,-460.0,0.00021917,2]
[370521923,1752053470713,-2150.85,0.00021917,2]
[370521924,1752053470723,-197.880168,0.00021917,2]